fUST/lending_fUST_20250618
["ID","MTS","AMOUNT","RATE_DAILY","PERIOD"]
[366429577,1750252253521,-460.0,0.00024109,6]
[366429578,1750252253531,-460.0,0.00024109,6]
[366429579,1750252253541,-379.31926326,0.00024109,6]
[366429580,1750252253550,-460.0,0.00024109,6]
[366429581,1750252253560,-460.0,0.00024109,6]
[366429582,1750252253569,-460.0,0.00024109,6]
[366429583,1750252253578,-460.0,0.00024109,6]
[366429584,1750252253588,-497.04,0.00024109,6]
[366429585,1750252253597,-1212.23,0.00024109,6]
[366429586,1750252253607,-460.0,0.00024109,6]
[366429587,1750252253616,-460.0,0.00024109,6]
[366429588,1750252253626,-460.0,0.00024109,6]
[366429589,1750252253635,-460.0,0.00024109,6]
[366429590,1750252253645,-460.0,0.00024109,6]
[366429591,1750252253655,-1479.93,0.00024109,6]
[366429592,1750252253664,-1494.46,0.00024109,6]
[366429593,1750252253673,-440.0,0.00024109,6]
[366429594,1750252253682,-460.0,0.00024109,6]
[366429595,1750252253692,-484.46,0.00024109,6]
[366429596,1750252253701,-896.68,0.00024109,6]
[366429597,1750252253711,-460.0,0.00024109,6]
[366429598,1750252253720,-1162.77,0.00024109,6]
[366429599,1750252253730,-391.47692739,0.00024109,6]
[366429600,1750252253739,-460.0,0.00024109,6]
[366429601,1750252253748,-460.0,0.00024109,6]
[366429602,1750252253758,-460.0,0.00024109,6]
[366429603,1750252253767,-1027.62,0.00024109,6]
[366429604,1750252253777,-460.0,0.00024109,6]
[366429605,1750252253787,-460.0,0.00024109,6]
[366429606,1750252253796,-460.0,0.00024109,6]
[366429607,1750252253807,-731.23,0.00024109,6]
[366429608,1750252253816,-460.0,0.00024109,6]
[366429609,1750252253826,-460.0,0.00024109,6]
[366429610,1750252253835,-460.0,0.00024109,6]
[366429611,1750252253845,-460.0,0.00024109,6]
[366429612,1750252253854,-460.0,0.00024109,6]
[366429613,1750252253864,-460.0,0.00024109,6]
[366429614,1750252253874,-460.0,0.00024109,6]
[366429615,1750252253884,-507.09,0.00024109,6]
[366429616,1750252253893,-452.8,0.00024109,6]
[366429617,1750252253903,-872.53,0.00024109,6]
[366429618,1750252253913,-460.0,0.00024109,6]
[366429619,1750252253927,-460.0,0.00024109,6]
[366429620,1750252253937,-535.46,0.00024109,6]
[366429621,1750252253947,-460.0,0.00024109,6]
[366429622,1750252253957,-460.0,0.00024109,6]
[366429623,1750252253966,-460.0,0.00024109,6]
[366429624,1750252253977,-3020.47,0.00024109,6]
[366429625,1750252253987,-1237.72,0.00024109,6]
[366429626,1750252253997,-460.0,0.00024109,6]
[366429627,1750252254007,-460.0,0.00024109,6]
[366429628,1750252254017,-3000.0,0.0002411,2]
[366429629,1750252254027,-2000.0,0.00024116,2]
[366429630,1750252254037,-2400.0,0.00024116,2]
[366429631,1750252254047,-2000.0,0.00024116,2]
[366429632,1750252254057,-3000.0,0.0002412,2]
[366429633,1750252254066,-3000.0,0.0002413,2]
[366429634,1750252254076,-3000.0,0.0002414,2]
[366429635,1750252254085,-500.59896885,0.00024141,2]
[366429636,1750252254095,-3000.0,0.0002415,2]
[366429637,1750252254104,-3000.0,0.0002416,2]
[366429638,1750252254114,-172.0,0.00024164,7]
[366429639,1750252254124,-1045.37449,0.0002417,2]
[366429640,1750252254134,-1045.37449,0.0002417,2]
[366429641,1750252254144,-3000.0,0.0002417,2]
[366429642,1750252254154,-1684.58613879,0.0002417,2]
[366429643,1750252254163,-3000.0,0.0002418,2]
[366429644,1750252254173,-208.8,0.00024187,7]
[366429645,1750252254182,-3000.0,0.0002419,2]
[366429646,1750252254191,-3000.0,0.000242,2]
[366429647,1750252254201,-3000.0,0.0002421,2]
[366429648,1750252254210,-3000.0,0.0002422,2]
[366429649,1750252254219,-3000.0,0.0002423,2]
[366429650,1750252254229,-3000.0,0.0002424,2]
[366429651,1750252254239,-1521.50742211,0.00024245,10]
[366429652,1750252254248,-3000.0,0.0002425,2]
[366429653,1750252254258,-3000.0,0.0002426,2]
[366429654,1750252254267,-3000.0,0.0002427,2]
[366429655,1750252254277,-168.0,0.00024276,2]
[366429656,1750252254286,-3000.0,0.0002428,2]
[366429657,1750252254296,-3000.0,0.0002429,2]
[366429658,1750252254305,-3000.0,0.000243,2]
[366429659,1750252254315,-1684.58613879,0.00024305,2]
[366429660,1750252254325,-500.0,0.00024307,2]
[366429661,1750252254335,-3000.0,0.0002431,2]
[366429662,1750252254344,-3000.0,0.0002432,2]
[366429663,1750252254353,-3000.0,0.0002433,2]
[366429664,1750252254363,-3000.0,0.0002434,2]
[366429665,1750252254372,-356.0,0.00024348,2]
[366429666,1750252254382,-3000.0,0.0002435,2]
[366429667,1750252254391,-3000.0,0.0002436,2]
[366429668,1750252254401,-500.0,0.0002436,2]
[366429669,1750252254410,-3000.0,0.0002437,2]
[366429670,1750252254419,-3000.0,0.0002438,2]
[366429671,1750252254429,-460.0,0.00024383,6]
[366429672,1750252254438,-158.46845455,0.00024383,6]
[366429673,1750252254447,-460.0,0.00024383,6]
[366429674,1750252254456,-460.0,0.00024383,6]
[366429675,1750252254466,-410.0,0.00024383,6]
[366429676,1750252254475,-497.04,0.00024383,6]
[366429677,1750252254484,-1212.23,0.00024383,6]
[366429678,1750252254494,-390.25,0.00024383,6]
[366429679,1750252254503,-1479.93,0.00024383,6]
[366429680,1750252254512,-1494.46,0.00024383,6]
[366429681,1750252254522,-460.0,0.00024383,6]
[366429682,1750252254531,-896.68,0.00024383,6]
[366429683,1750252254541,-1162.77,0.00024383,6]
[366429684,1750252254551,-460.0,0.00024383,6]
[366429685,1750252254560,-1027.62,0.00024383,6]
[366429686,1750252254569,-460.0,0.00024383,6]
[366429687,1750252254579,-460.0,0.00024383,6]
[366429688,1750252254589,-731.23,0.00024383,6]
[366429689,1750252254598,-298.7580582,0.00024383,6]
[366429690,1750252254607,-202.08577092,0.00024383,6]
[366429691,1750252254617,-507.09,0.00024383,6]
[366429692,1750252254626,-872.53,0.00024383,6]
[366429693,1750252254635,-535.46,0.00024383,6]
[366429694,1750252254645,-460.0,0.00024383,6]
[366429695,1750252254654,-460.0,0.00024383,6]
[366429696,1750252254664,-3020.47,0.00024383,6]
[366429697,1750252254674,-1237.72,0.00024383,6]
[366429698,1750252254683,-460.0,0.00024383,6]
[366429699,1750252254692,-3000.0,0.0002439,2]
[366429700,1750252254702,-3000.0,0.000244,2]
[366429701,1750252254711,-3000.0,0.0002441,2]
[366429702,1750252254721,-3000.0,0.0002442,2]
[366429703,1750252254730,-208.8,0.00024425,7]
[366429704,1750252254739,-3000.0,0.0002443,2]
[366429705,1750252254749,-4285.85533,0.0002444,2]
[366429706,1750252254758,-1684.58613879,0.0002444,2]
[366429707,1750252254768,-2200.0,0.00024446,2]
[366429708,1750252254777,-1521.50742211,0.00024452,11]
[366429709,1750252254787,-250.0,0.00024521,2]
[366429710,1750252254796,-1684.58613879,0.00024575,2]
[366429711,1750252254805,-500.0,0.00024593,2]
[366429712,1750252254815,-231.28369723,0.00024631,2]
[366429713,1750252254825,-300.0,0.00024657,4]
[366429714,1750252254835,-160.0,0.00024657,4]
[366429715,1750252254849,-261.0,0.00024657,6]
[366429716,1750252254859,-460.0,0.00024657,6]
[366429717,1750252254869,-497.04,0.00024657,6]
[366429718,1750252254879,-1212.23,0.00024657,6]
[366429719,1750252254888,-1479.93,0.00024657,6]
[366429720,1750252254898,-1494.46,0.00024657,6]
[366429721,1750252254908,-395.92,0.00024657,6]
[366429722,1750252254918,-896.68,0.00024657,6]
[366429723,1750252254931,-1162.77,0.00024657,6]
[366429724,1750252254940,-460.0,0.00024657,6]
[366429725,1750252254950,-1027.62,0.00024657,6]
[366429726,1750252254959,-460.0,0.00024657,6]
[366429727,1750252254969,-460.0,0.00024657,6]
[366429728,1750252254979,-731.23,0.00024657,6]
[366429729,1750252254989,-507.09,0.00024657,6]
[366429730,1750252254998,-872.53,0.00024657,6]
[366429731,1750252255008,-535.46,0.00024657,6]
[366429732,1750252255018,-353.42306226,0.00024657,6]
[366429733,1750252255028,-3020.47,0.00024657,6]
[366429734,1750252255037,-1237.72,0.00024657,6]
[366429735,1750252255047,-460.0,0.00024657,6]
[366429736,1750252255056,-427.07043642,0.00024658,2]
[366429737,1750252255066,-500.0,0.00024658,2]
[366429738,1750252255075,-1521.50742211,0.00024659,11]
[366429739,1750252255084,-208.8,0.00024662,7]
[366429740,1750252255094,-761.5464978,0.00024664,2]
[366429741,1750252255103,-3000.0,0.00024664,2]
[366429742,1750252255112,-2500.0,0.00024664,2]
[366429743,1750252255122,-48171.5748017,0.00024679,7]
[366429744,1750252255131,-500.0,0.00024685,2]
[366429745,1750252255141,-1684.58613879,0.0002471,2]
[366429746,1750252255150,-500.0,0.00024713,2]
[366429747,1750252255160,-500.0,0.0002474,2]
[366429748,1750252255169,-184293.3,0.00024755,12]
[366429749,1750252255179,-76696.27761156,0.00024755,12]
[366429750,1750252255552,-152.920919,0.00020464,2]
[366429751,1750252255561,-227.23,0.00021694,3]
[366429752,1750252255571,-460.0,0.00021917,6]
[366429753,1750252255580,-460.0,0.00021917,6]
[366429754,1750252255590,-460.0,0.00021917,6]
[366429755,1750252255599,-460.0,0.00022191,6]
[366429756,1750252255610,-460.0,0.00022191,6]
[366429757,1750252255619,-291.22498842,0.00022465,6]
[366429758,1750252255628,-577.09229749,0.00022465,6]
[366429759,1750252255639,-118.16140338,0.00023064,3]
[366429760,1750252260915,203.322672,0.00013699,2]
[366429762,1750252427166,-586.96395748,0.00018514,2]
[366429763,1750252427191,-166.6284359,0.00019657,2]
[366429764,1750252427214,-1602.39,0.00019757,2]
[366429765,1750252427315,-203.322672,0.00020187,2]
[366429766,1750252427339,-151.0,0.00020461,2]
[366429767,1750252427361,-151.0,0.00020461,2]
[366429768,1750252427387,-500.0,0.00020487,2]
[366429769,1750252427412,-291.84022569,0.00020487,2]
[366429770,1750252427434,-300.0,0.00020487,2]
[366429771,1750252427456,-835.98428123,0.00020488,2]
[366429772,1750252427477,-160.0,0.00020488,2]
[366429773,1750252427498,-424.70586748,0.00020488,2]
[366429774,1750252427520,-160.0,0.00020488,2]
[366429775,1750252427541,-12542.39314967,0.00020488,2]
[366429776,1750252427562,-151.0,0.00020488,2]
[366429777,1750252427583,-151.0,0.00020488,2]
[366429778,1750252427604,-151.0,0.00020488,2]
[366429779,1750252427626,-229.574777,0.00020488,2]
[366429780,1750252427648,-741.466099,0.00020488,2]
[366429781,1750252427669,-229.574777,0.00020488,2]
[366429782,1750252427691,-151.0,0.00020488,2]
[366429783,1750252427713,-741.466099,0.00020488,2]
[366429784,1750252427734,-151.0,0.00020488,2]
[366429785,1750252427755,-151.0,0.00020488,2]
[366429786,1750252427776,-151.0,0.00020488,2]
[366429787,1750252427797,-151.0,0.00020488,2]
[366429788,1750252427818,-151.0,0.0002049,2]
[366429789,1750252427840,-151.0,0.0002049,2]
[366429790,1750252427861,-229.574777,0.0002049,2]
[366429791,1750252427883,-229.574777,0.0002049,2]
[366429792,1750252427905,-151.0,0.00020521,2]
[366429793,1750252427928,-741.466099,0.00020521,2]
[366429794,1750252427951,-151.0,0.00020521,2]
[366429795,1750252427974,-741.466099,0.00020521,2]
[366429796,1750252428000,-151.0,0.00020524,2]
[366429797,1750252428022,-151.0,0.00020524,2]
[366429798,1750252428045,-151.0,0.00020524,2]
[366429799,1750252428068,-229.574777,0.00020524,2]
[366429800,1750252428090,-229.574777,0.00020524,2]
[366429801,1750252428112,-741.466099,0.00020524,2]
[366429802,1750252428134,-741.466099,0.00020524,2]
[366429803,1750252428156,-229.574777,0.00020524,2]
[366429804,1750252428178,-229.574777,0.00020524,2]
[366429805,1750252428202,-151.0,0.00020524,2]
[366429806,1750252428224,-741.466099,0.00020524,2]
[366429807,1750252428247,-741.466099,0.00020524,2]
[366429808,1750252428270,-151.0,0.00020524,2]
[366429809,1750252428292,-151.0,0.00020524,2]
[366429810,1750252428314,-214.771463,0.00020555,2]
[366429811,1750252428337,-151.0,0.00020555,2]
[366429812,1750252428359,-500.0,0.00020556,2]
[366429813,1750252428381,-229.574777,0.00020556,2]
[366429814,1750252428404,-741.466099,0.00020556,2]
[366429815,1750252428428,-229.574777,0.00020556,2]
[366429816,1750252428451,-151.0,0.00020556,2]
[366429817,1750252428474,-741.466099,0.00020556,2]
[366429818,1750252428497,-151.0,0.00020556,2]
[366429819,1750252428520,-229.574777,0.00020728,2]
[366429820,1750252428543,-741.466099,0.00020728,2]
[366429821,1750252428567,-229.574777,0.00020728,2]
[366429822,1750252428591,-151.0,0.00020728,2]
[366429823,1750252428613,-741.466099,0.00020728,2]
[366429824,1750252428706,-151.0,0.00020728,2]
[366429825,1750252428730,-229.574777,0.00021072,2]
[366429826,1750252428753,-741.466099,0.00021072,2]
[366429827,1750252428776,-229.574777,0.00021072,2]
[366429828,1750252428799,-741.466099,0.00021072,2]
[366429829,1750252428821,-151.0,0.00021072,2]
[366429830,1750252428844,-151.0,0.00021131,2]
[366429831,1750252428866,-229.574777,0.00021194,2]
[366429832,1750252428889,-229.574777,0.00021194,2]
[366429833,1750252428910,-245.91617002,0.00021336,2]
[366429834,1750252428933,-741.466099,0.00021348,2]
[366429835,1750252428956,-151.0,0.00021348,2]
[366429836,1750252428985,-741.466099,0.00021348,2]
[366429837,1750252429017,-151.0,0.00021348,2]
[366429838,1750252429042,-229.574777,0.00021353,2]
[366429839,1750252429067,-229.574777,0.00021353,2]
[366429840,1750252429090,-741.466099,0.00021417,2]
[366429841,1750252429112,-151.0,0.00021417,2]
[366429842,1750252429136,-741.466099,0.00021417,2]
[366429843,1750252429158,-151.0,0.0002145,2]
[366429844,1750252429182,-3204.78,0.00021553,2]
[366429845,1750252429204,-500.0,0.00021591,2]
[366429846,1750252429226,-229.574777,0.0002162,2]
[366429847,1750252429247,-229.574777,0.0002162,2]
[366429848,1750252429270,-741.466099,0.00021662,2]
[366429849,1750252429293,-741.466107,0.00021662,2]
[366429850,1750252429317,-151.0,0.00021662,2]
[366429851,1750252429339,-151.0,0.00021662,2]
[366429852,1750252429379,-151.0,0.00021741,2]
[366429853,1750252429419,-972.29,0.00021917,6]
[366429854,1750252429461,-772.2,0.00021917,6]
[366429855,1750252429496,-584.76,0.00021917,6]
[366429856,1750252429532,-976.66,0.00021917,6]
[366429857,1750252429565,-460.0,0.00021917,6]
[366429858,1750252429602,-469.86600201,0.00021917,6]
[366429859,1750252429632,-460.0,0.00021917,6]
[366429860,1750252429668,-460.0,0.00021917,6]
[366429861,1750252429701,-460.0,0.00021917,6]
[366429862,1750252429730,-460.0,0.00021917,6]
[366429863,1750252429762,-975.33,0.00021917,6]
[366429864,1750252429794,-460.0,0.00021917,6]
[366429865,1750252429826,-460.0,0.00021917,6]
[366429866,1750252429858,-460.0,0.00021917,6]
[366429867,1750252429888,-278.56577656,0.00021917,6]
[366429868,1750252429915,-460.0,0.00021917,6]
[366429869,1750252429938,-460.0,0.00021917,6]
[366429870,1750252429961,-460.0,0.00021917,6]
[366429871,1750252429984,-460.0,0.00021917,6]
[366429872,1750252430010,-456.66,0.00021917,6]
[366429873,1750252430035,-460.0,0.00021917,6]
[366429874,1750252430056,-440.0,0.00021917,6]
[366429875,1750252430080,-460.0,0.00021917,6]
[366429876,1750252430102,-440.0,0.00021917,6]
[366429877,1750252430123,-460.0,0.00021917,6]
[366429878,1750252430147,-469.09,0.00021917,6]
[366429879,1750252430171,-460.0,0.00021917,6]
[366429880,1750252430375,-412.33724672,0.00021917,6]
[366429881,1750252430409,-260.56839692,0.00021917,6]
[366429882,1750252430431,-460.0,0.00021917,6]
[366429883,1750252430453,-438.94523599,0.00021917,6]
[366429884,1750252430474,-443.23693444,0.00021917,6]
[366429885,1750252430496,-460.0,0.00021917,6]
[366429886,1750252430518,-460.0,0.00021917,6]
[366429887,1750252430540,-1000.0,0.00021917,6]
[366429888,1750252430561,-460.0,0.00021917,6]
[366429889,1750252430585,-528.15,0.00021917,6]
[366429890,1750252430606,-440.0,0.00021917,6]
[366429891,1750252430629,-460.0,0.00021917,6]
[366429892,1750252430651,-460.0,0.00021917,6]
[366429893,1750252430671,-440.0,0.00021917,6]
[366429894,1750252430692,-430.0,0.00021917,6]
[366429895,1750252430713,-460.0,0.00021917,6]
[366429896,1750252430735,-460.0,0.00021917,6]
[366429897,1750252430756,-460.0,0.00021917,6]
[366429898,1750252430778,-460.0,0.00021917,6]
[366429899,1750252430800,-460.0,0.00021917,6]
[366429900,1750252430821,-460.0,0.00021917,6]
[366429901,1750252430843,-460.0,0.00021917,6]
[366429902,1750252430866,-450.0,0.00021917,6]
[366429903,1750252430888,-460.0,0.00021917,6]
[366429904,1750252430911,-460.0,0.00021917,6]
[366429905,1750252430934,-460.0,0.00021917,6]
[366429906,1750252430956,-420.58663699,0.00021917,6]
[366429907,1750252430980,-460.0,0.00021917,6]
[366429908,1750252431005,-460.0,0.00021917,6]
[366429909,1750252431034,-460.0,0.00021917,6]
[366429910,1750252431056,-460.0,0.00021917,6]
[366429911,1750252431078,-460.0,0.00021917,6]
[366429912,1750252431099,-357.66370567,0.00021917,6]
[366429913,1750252431120,-460.0,0.00021917,6]
[366429914,1750252431144,-460.0,0.00021917,6]
[366429915,1750252431166,-460.0,0.00021917,6]
[366429916,1750252431188,-460.0,0.00021917,6]
[366429917,1750252431210,-460.0,0.00021917,6]
[366429918,1750252431231,-460.0,0.00021917,6]
[366429919,1750252431253,-460.0,0.00021917,6]
[366429920,1750252431275,-460.0,0.00021917,6]
[366429921,1750252431296,-460.0,0.00021917,6]
[366429922,1750252431317,-460.0,0.00021917,6]
[366429923,1750252431338,-460.0,0.00021917,6]
[366429924,1750252431358,-440.0,0.00021917,6]
[366429925,1750252431380,-460.0,0.00021917,6]
[366429926,1750252431404,-457.11767686,0.00021917,6]
[366429927,1750252431425,-460.0,0.00021917,6]
[366429928,1750252431447,-460.0,0.00021917,6]
[366429929,1750252431471,-460.0,0.00021917,6]
[366429930,1750252431493,-460.0,0.00021917,6]
[366429931,1750252431513,-460.0,0.00021917,6]
[366429932,1750252431535,-460.0,0.00021917,6]
[366429933,1750252431556,-460.0,0.00021917,6]
[366429934,1750252431580,-1810.22,0.00021917,6]
[366429935,1750252431601,-546.82,0.00021917,6]
[366429936,1750252431624,-460.0,0.00021917,6]
[366429937,1750252431645,-421.85729242,0.00021917,6]
[366429938,1750252431686,489.79383217,0.00021917,6]
[366429939,1750252431732,460.0,0.00021917,6]
[366429940,1750252432010,460.0,0.00021917,6]
[366429941,1750252432290,461.13021762,0.00021917,6]
[366429942,1750252433691,460.0,0.00021917,6]
[366429943,1750252434383,460.0,0.00021917,6]
[366429944,1750252436075,460.0,0.00021917,6]
[366429945,1750252437625,460.0,0.00021917,6]
[366429946,1750252437994,460.0,0.00021917,6]
[366429947,1750252438443,448.80017545,0.00021917,6]
[366429948,1750252439987,460.0,0.00021917,6]
[366429949,1750252440020,813.44,0.00021917,6]
[366429950,1750252440062,460.0,0.00021917,6]
[366429951,1750252440431,1541.21,0.00019749,2]
[366429952,1750252440872,3082.42,0.00021544,2]
[366429953,1750252441606,460.0,0.00021917,6]
[366429954,1750252441756,460.0,0.00021917,6]
[366429955,1750252442451,460.0,0.00021917,6]
[366429956,1750252442966,460.0,0.00021917,6]
[366429957,1750252443640,460.0,0.00021917,6]
[366429958,1750252443683,460.0,0.00021917,6]
[366429959,1750252445298,460.0,0.00021917,6]
[366429960,1750252445381,460.0,0.00021917,6]
[366429961,1750252445897,460.0,0.00021917,6]
[366429962,1750252447782,460.0,0.00021917,6]
[366429963,1750252448053,500.0,0.00021917,6]
[366429964,1750252448308,500.0,0.00021917,6]
[366429965,1750252448549,500.0,0.00021917,6]
[366429966,1750252448800,500.0,0.00021917,6]
[366429967,1750252449065,500.0,0.00021917,6]
[366429968,1750252449319,500.0,0.00021917,6]
[366429969,1750252449576,500.0,0.00021917,6]
[366429970,1750252449810,500.0,0.00021917,6]
[366429971,1750252449835,355.63649841,0.00021917,6]
[366429972,1750252450068,500.0,0.00021917,6]
[366429973,1750252450342,220.1306213,0.00021917,6]
[366429976,1750252515330,1000.0,0.00024,120]
[366429978,1750252539337,1000.0,0.00024,120]
[366429979,1750252540802,1000.0,0.00024,120]
[366429980,1750252541736,1000.0,0.00024,120]
[366429983,1750252834158,168.0,0.00016438,3]
[366429985,1750253134151,-226.35468164,0.00018602,2]
[366429986,1750253134176,-1000.0,0.0001879,2]
[366429987,1750253134211,-1498.88,0.00019695,2]
[366429988,1750253134242,-300.0,0.00020655,2]
[366429989,1750253134274,-300.0,0.00020655,2]
[366429990,1750253134297,-300.0,0.00020655,2]
[366429991,1750253134321,-957.0,0.00020655,2]
[366429992,1750253134348,-500.0,0.00020656,2]
[366429993,1750253134375,-500.0,0.00020656,2]
[366429994,1750253134400,-342.98272979,0.00020656,2]
[366429995,1750253134426,-500.0,0.00020656,2]
[366429996,1750253134450,-500.0,0.00020656,2]
[366429997,1750253134475,-500.0,0.00020656,2]
[366429998,1750253134500,-500.0,0.00020656,2]
[366429999,1750253134527,-500.0,0.00020656,2]
[366430000,1750253134551,-500.0,0.00020656,2]
[366430001,1750253134576,-500.0,0.00020656,2]
[366430002,1750253134600,-500.0,0.00020656,2]
[366430003,1750253134624,-500.0,0.00020656,2]
[366430004,1750253134645,-1154.78401382,0.00020656,2]
[366430005,1750253134666,-229.98435572,0.00020657,2]
[366430006,1750253134686,-213.43818883,0.00020657,2]
[366430007,1750253134707,-160.0,0.00020657,2]
[366430008,1750253134727,-160.0,0.00020657,2]
[366430009,1750253134748,-835.98428123,0.00020657,2]
[366430010,1750253134772,-12542.39314967,0.00020657,2]
[366430011,1750253134795,-845.78193577,0.00020659,2]
[366430012,1750253134816,-213.3145634,0.00020715,2]
[366430013,1750253134837,-865.38886802,0.00020822,2]
[366430014,1750253134859,-421.79016489,0.00021,4]
[366430015,1750253134883,-207.4,0.00021267,2]
[366430016,1750253134905,-249.509,0.00021279,2]
[366430017,1750253134926,-24900.0,0.0002128,2]
[366430018,1750253134947,-753.47119576,0.00021317,2]
[366430019,1750253134968,-2997.75,0.00021485,2]
[366430020,1750253134991,-753.47119574,0.00021857,2]
[366430021,1750253135013,-243.03,0.00021907,3]
[366430022,1750253135037,-729.09,0.00021907,3]
[366430023,1750253135059,-468.16550497,0.00021916,2]
[366430024,1750253135080,-360.24165597,0.00021917,6]
[366430025,1750253135101,-279.8693787,0.00021917,6]
[366430026,1750253135122,-500.0,0.00021917,6]
[366430027,1750253135144,-500.0,0.00021917,6]
[366430028,1750253135166,-500.0,0.00021917,6]
[366430029,1750253135190,-435.16852193,0.00021917,6]
[366430030,1750253135211,-357.58131252,0.00021917,6]
[366430031,1750253135354,-460.0,0.00021917,6]
[366430032,1750253135377,-460.0,0.00021917,6]
[366430033,1750253135400,-450.0,0.00021917,6]
[366430034,1750253135423,-459.41964119,0.00021917,6]
[366430035,1750253135444,-451.84824957,0.00021917,6]
[366430036,1750253135465,-458.09674538,0.00021917,6]
[366430037,1750253135485,-430.05060219,0.00021917,6]
[366430038,1750253135506,-430.0,0.00021917,6]
[366430039,1750253135531,-460.0,0.00021917,6]
[366430040,1750253135553,-460.0,0.00021917,6]
[366430041,1750253135575,-460.0,0.00021917,6]
[366430042,1750253135596,-284.42146539,0.00021917,6]
[366430043,1750253135617,-455.82166292,0.00021917,6]
[366430044,1750253135639,-430.0,0.00021917,6]
[366430045,1750253135661,-406.71784945,0.00021917,6]
[366430046,1750253135682,-460.0,0.00021917,6]
[366430047,1750253135704,-410.46899206,0.00021917,6]
[366430048,1750253135725,-460.0,0.00021917,6]
[366430049,1750253135746,-460.0,0.00021917,6]
[366430050,1750253135768,-460.0,0.00021917,6]
[366430051,1750253135791,-460.0,0.00021917,6]
[366430052,1750253135812,-460.0,0.00021917,6]
[366430053,1750253135833,-460.0,0.00021917,6]
[366430054,1750253135856,-507.68222954,0.00021917,6]
[366430055,1750253135876,-460.0,0.00021917,6]
[366430056,1750253135898,-460.0,0.00021917,6]
[366430057,1750253135919,-500.0,0.00021917,6]
[366430058,1750253135940,-500.0,0.00021917,6]
[366430059,1750253135962,-460.0,0.00021917,6]
[366430060,1750253135984,-500.0,0.00021917,6]
[366430061,1750253136006,-500.0,0.00021917,6]
[366430062,1750253136031,-500.0,0.00021917,6]
[366430063,1750253136051,-246.30434827,0.00021917,6]
[366430064,1750253136072,-460.0,0.00021917,6]
[366430065,1750253136094,-460.0,0.00021917,6]
[366430066,1750253136116,-460.0,0.00021917,6]
[366430067,1750253136140,-410.0,0.00021917,6]
[366430068,1750253136163,-460.0,0.00021917,6]
[366430069,1750253136190,-460.0,0.00021917,6]
[366430070,1750253136210,-460.0,0.00021917,6]
[366430071,1750253136233,-460.0,0.00021917,6]
[366430072,1750253136254,-400.0,0.00021917,6]
[366430073,1750253136281,-460.0,0.00021917,6]
[366430074,1750253136302,-460.0,0.00021917,6]
[366430075,1750253136323,-460.0,0.00021917,6]
[366430076,1750253136344,-460.0,0.00021917,6]
[366430077,1750253136366,-299.82535592,0.00021917,6]
[366430078,1750253136389,-460.0,0.00021917,6]
[366430079,1750253136414,-460.0,0.00021917,6]
[366430080,1750253136437,-460.0,0.00021917,6]
[366430081,1750253136458,-460.0,0.00021917,6]
[366430082,1750253136483,-460.0,0.00021917,6]
[366430083,1750253136505,-422.29655223,0.00021917,6]